[Event "4th ChessMates Murmansk 2020"]
[Site "Murmansk"]
[Date "2020.03.14"]
[Round "4.28"]
[White "Khon, Ilya"]
[Black "Pereverzev, Valerii"]
[Result "0-1"]
[ECO "B80"]
[WhiteElo "1223"]
[BlackElo "1379"]
[Annotator "NA RC"]
[PlyCount "88"]
[EventDate "2020.03.13"]
[EventType "team-tourn"]
[EventCountry "RUS"]
[SourceTitle "playchess.com"]
[Source "ChessBase"]
[SourceQuality "1"]
[TimeControl "5400+30"]

1. e4 {[%emt 0:00:00]} c5 {[%emt 0:00:00]} 2. Nf3 {[%emt 0:00:00]} e6 {[%emt 0:00:00]} 3. d4 {[%emt 0:00:00]} cxd4 {[%emt 0:00:00]} 4. Nxd4 {[%emt 0:00:00]} Nf6 {[%emt 0:00:00]} 5. Nc3 {[%emt 0:00:00]} d6 {[%emt 0:00:03]} 6. Bd3 {[%emt 0:00:21]} a6 {[%emt 0:00:11]} 7. a4 {[%emt 0:01:49]} Be7 {[%emt 0:00:12]} 8. O-O {[%emt 0:00:07]} Qc7 {[%emt 0:00:34]} 9. Bd2 {[%emt 0:01:48]} Nc6 {[%emt 0:00:15]} 10. Kh1 {[%emt 0:02:52]} Nxd4 {[%emt 0:00:38]} 11. Be3 {[%emt 0:00:27]} Nc6 {[%emt 0:00:16]} 12. a5 {[%emt 0:00:20]} Nxa5 {[%emt 0:00:36]} 13. Na4 Nc6 {[%emt 0:00:47]} 14. Nb6 {[%emt 0:04:43]} Rb8 {[%emt 0:00:18]} 15. Qe1 {[%emt 0:16:15]} Nd7 {[%emt 0:00:28]} 16. Nxd7 {[%emt 0:02:28]} Bxd7 {[%emt 0:00:10]} 17. f4 {[%emt 0:00:41]} Bf6 {[%emt 0:00:23]} 18. c3 {[%emt 0:00:37]} O-O {[%emt 0:00:16]} 19. Qf2 {[%emt 0:00:33]} Rbc8 {[%emt 0:01:36]} 20. Bb6 Qb8 {[%emt 0:00:11]} 21. Qg3 {[%emt 0:03:22]} g6 {[%emt 0:00:38]} 22. f5 {[%emt 0:16:50]} exf5 {[%emt 0:01:02]} 23. exf5 {[%emt 0:00:21]} Ne5 {[%emt 0:01:05]} 24. fxg6 {[%emt 0:15:29]} fxg6 {[%emt 0:00:07]} 25. Bd4 {[%emt 0:00:26]} Bg7 {[%emt 0:00:41]} 26. Bc2 {[%emt 0:10:31]} Rxf1+ {[%emt 0:00:51]} 27. Rxf1 {[%emt 0:00:05]} Rf8 {[%emt 0:00:41]} 28. Re1 {[%emt 0:01:20]} Be6 {[%emt 0:01:27]} 29. Bxe5 {[%emt 0:19:53]} dxe5 {[%emt 0:00:10]} 30. h3 {[%emt 0:00:25]} Rf7 {[%emt 0:00:23]} 31. Rc1 {[%emt 0:02:03]} Qf8 {[%emt 0:00:13]} 32. Bd3 {[%emt 0:00:19]} Rf2 {[%emt 0:00:30]} 33. b4 {[%emt 0:00:26]} Qf4 {[%emt 0:00:15]} 34. Qxf4 {[%emt 0:00:34]} Rxf4 {[%emt 0:00:14]} 35. Re1 {[%emt 0:00:04]} Bc4 {[%emt 0:00:17]} 36. Bxc4+ {[%emt 0:00:42]} Rxc4 {[%emt 0:00:08]} 37. Rd1 {[%emt 0:00:16]} Rc7 {[%emt 0:00:37]} 38. c4 {[%emt 0:00:10]} e4 {[%emt 0:00:51]} 39. c5 {[%emt 0:00:40]} Bc3 {[%emt 0:00:16]} 40. Rd8+ {[%emt 0:01:05]} Kg7 {[%emt 0:00:12]} 41. Re8 {[%emt 0:00:11]} Bxb4 {[%emt 0:00:18]} 42. Rxe4 {[%emt 0:00:09]} Bxc5 {[%emt 0:00:08]} 43. Rc4 {[%emt 0:00:21]} Bd6 {[%emt 0:00:12]} 44. Rd4 {[%emt 0:00:04]} Rc1+ {[%emt 0:00:21]} 0-1

[Event "4th ChessMates Murmansk 2020"]
[Site "Murmansk"]
[Date "2020.03.14"]
[Round "4.30"]
[White "Zaytsev, Egor"]
[Black "Bueckert, Lucy"]
[Result "1-0"]
[ECO "B01"]
[WhiteElo "1871"]
[BlackElo "1302"]
[Annotator "NA RC"]
[PlyCount "61"]
[EventDate "2020.03.13"]
[EventType "team-tourn"]
[EventCountry "RUS"]
[SourceTitle "playchess.com"]
[Source "ChessBase"]
[SourceQuality "1"]
[TimeControl "5400+30"]

{[%evp 8,60,61,32767,32767,32767,32767,32767,32767,32767,59,83,216,202,387,379,818,32767,32767,32767,32767,32767,853,32767,32767,1065,966,706,711,707,743,752,728,32767,804,32767,32767,32767,32767,32767,32767,1062,1025,1079,1153,4986,2320,32767,29976,29976,29997,857,29998,29999,29999]} 1. e4 {[%emt 0:00:00]} d5 {[%emt 0:00:00]} 2. exd5 {[%emt 0:00:00]} Nf6 {[%emt 0:00:00]} 3. d4 {[%emt 0:00:00]} Bg4 {[%emt 0:00:00]} 4. Nf3 {[%emt 0:00:08]} Nxd5 {[%emt 0:00:21]} 5. Be2 {[%emt 0:00:47]} e6 {[%emt 0:00:28]} 6. O-O {[%emt 0:00:43]} c5 {[%emt 0:00:19]} 7. c4 {[%emt 0:02:04] B01: Scandinavian Defence.} Nf6 {[%emt 0:02:39]} 8. h3 {[%emt 0:07:34] [#]} Bf5 $146 {[%emt 0:01:41]} ({Predecessor:} 8... Bh5 9. Be3 Nc6 10. dxc5 b6 11. cxb6 axb6 12. Nc3 Bb4 13. Qc2 O-O 14. Rfd1 Qc7 15. a3 {0-1 (31) Horvath,D (1610)-Rohrleitner,N (1318) Linz 2013}) 9. Nc3 {[%emt 0:00:48]} Nc6 {[%emt 0:02:03]} (9... Be7 $16) 10. d5 {[%emt 0:04:20]} exd5 $2 {[%emt 0:02:07]} (10... Nd4 11. Nxd4 cxd4) 11. cxd5 {[%emt 0:00:03]} Nb4 $2 {[%emt 0:00:26]} (11... Nxd5 12. Nxd5 Qd7) 12. Bb5+ {[%emt 0:01:48]} Bd7 {[%emt 0:03:23]} 13. Re1+ {[%emt 0:00:19]} Be7 {[%emt 0:00:24]} 14. d6 {[%emt 0:00:44]} Bxb5 {[%emt 0:03:40]} 15. Nxb5 {[%emt 0:01:10]} Nbd5 {[%emt 0:01:46]} 16. dxe7 {[%emt 0:02:53]} Nxe7 {[%emt 0:01:19]} 17. Bf4 {[%emt 0:00:40]} O-O {[%emt 0:00:34]} 18. Qxd8 {[%emt 0:01:10]} Rfxd8 {[%emt 0:00:22]} 19. Rxe7 {[%emt 0:00:33]} Nd5 {[%emt 0:00:35]} 20. Re4 {[%emt 0:00:46]} a6 {[%emt 0:03:08]} 21. Nc7 {[%emt 0:00:25]} Nxc7 {[%emt 0:00:40]} 22. Bxc7 {[%emt 0:00:06]} Rd7 {[%emt 0:00:32]} 23. Rae1 {[%emt 0:00:18]} f5 {[%emt 0:01:04]} 24. Re7 {[%emt 0:00:15]} Rxe7 {[%emt 0:00:27]} 25. Rxe7 {[%emt 0:00:05]} Rc8 {[%emt 0:00:30]} 26. Ng5 {[%emt 0:00:13]} h6 {[%emt 0:00:56]} 27. Ne6 {[%emt 0:00:05]} g6 {[%emt 0:01:26]} 28. Be5 {[%emt 0:00:17]} Rc6 {[%emt 0:00:51]} 29. Rg7+ {[%emt 0:00:04] Double Attack} Kh8 {[%emt 0:00:17]} 30. Rxg6+ {[%emt 0:00:02] Discovered Attack} Kh7 {[%emt 0:00:15]} 31. Nf8# {[%emt 0:00:04]} 1-0

[Event "4th ChessMates Murmansk 2020"]
[Site "Murmansk"]
[Date "2020.03.15"]
[Round "5.4"]
[White "Nikitin, Arseni EST"]
[Black "Mamoshin, Oleg"]
[Result "1/2-1/2"]
[ECO "B30"]
[WhiteElo "1680"]
[BlackElo "1648"]
[Annotator "NA RC"]
[PlyCount "61"]
[EventDate "2020.03.13"]
[EventType "team-tourn"]
[EventCountry "RUS"]
[SourceTitle "playchess.com"]
[Source "ChessBase"]
[SourceQuality "1"]
[TimeControl "5400+30"]

1. e4 {[%emt 0:00:00]} c5 {[%emt 0:00:00]} 2. Nf3 {[%emt 0:00:04]} Nc6 {[%emt 0:00:00]} 3. Bb5 {[%emt 0:00:09]} e6 {[%emt 0:00:00]} 4. O-O {[%emt 0:01:04]} Qb6 {[%emt 0:00:38]} 5. Bxc6 {[%emt 0:01:07]} Qxc6 {[%emt 0:00:06]} 6. Re1 {[%emt 0:00:12]} Nf6 {[%emt 0:00:29]} 7. e5 {[%emt 0:00:44]} Nd5 {[%emt 0:00:33]} 8. d4 {[%emt 0:01:16]} c4 {[%emt 0:05:24]} 9. c3 {[%emt 0:00:40]} Be7 {[%emt 0:00:51]} 10. Nbd2 {[%emt 0:00:10]} b5 {[%emt 0:01:33]} 11. Ne4 {[%emt 0:00:14]} Bb7 {[%emt 0:02:47]} 12. Nfg5 {[%emt 0:07:20]} h6 {[%emt 0:27:21]} 13. Nh3 {[%emt 0:00:11]} O-O-O {[%emt 0:00:38]} 14. f3 {[%emt 0:00:12]} f5 {[%emt 0:00:43]} 15. exf6 {[%emt 0:00:55]} Nxf6 {[%emt 0:00:14]} 16. Nf4 {[%emt 0:01:06]} Nxe4 {[%emt 0:03:07]} 17. fxe4 {[%emt 0:00:12]} Bf6 {[%emt 0:10:01]} 18. a4 {[%emt 0:02:47]} a6 {[%emt 0:03:57]} 19. axb5 {[%emt 0:02:04]} axb5 {[%emt 0:01:13]} 20. Qe2 {[%emt 0:03:55]} g5 {[%emt 0:10:53]} 21. Nh5 {[%emt 0:00:43]} Be7 {[%emt 0:01:18]} 22. Bd2 {[%emt 0:00:59]} Rhf8 {[%emt 0:02:11]} 23. Rab1 {[%emt 0:05:17]} Rf7 {[%emt 0:05:11]} 24. Ng3 {[%emt 0:01:06]} Rdf8 {[%emt 0:03:18]} 25. Rf1 {[%emt 0:00:13]} d5 {[%emt 0:02:15]} 26. e5 {[%emt 0:00:20]} Rxf1+ {[%emt 0:01:43]} 27. Rxf1 {[%emt 0:00:04]} Rxf1+ {[%emt 0:00:05]} 28. Qxf1 {[%emt 0:00:05]} Qe8 {[%emt 0:00:10]} 29. Qf3 {[%emt 0:02:21]} Bc6 {[%emt 0:05:57]} 30. Nh5 {[%emt 0:00:39]} Qg6 {[%emt 0:01:51]} 31. Qd1 {[%emt 0:02:05]} 1/2-1/2

[Event "4th ChessMates Murmansk 2020"]
[Site "Murmansk"]
[Date "2020.03.15"]
[Round "5.5"]
[White "Khripachenko, Alexander"]
[Black "Rikas, Artur"]
[Result "1-0"]
[ECO "B28"]
[WhiteElo "1773"]
[BlackElo "1580"]
[Annotator "NA RC"]
[PlyCount "45"]
[EventDate "2020.03.13"]
[EventType "team-tourn"]
[EventCountry "RUS"]
[SourceTitle "playchess.com"]
[Source "ChessBase"]
[SourceQuality "1"]
[TimeControl "5400+30"]

1. e4 {[%emt 0:00:00]} c5 {[%emt 0:00:16]} 2. Nf3 {[%emt 0:00:00]} a6 {[%emt 0:00:18]} 3. c4 {[%emt 0:00:00]} Nc6 {[%emt 0:00:31]} 4. d4 {[%emt 0:00:03]} cxd4 {[%emt 0:00:32]} 5. Nxd4 {[%emt 0:00:02]} e5 {[%emt 0:03:08]} 6. Nc2 {[%emt 0:00:56]} Nf6 {[%emt 0:04:09]} 7. Nc3 {[%emt 0:00:08]} h6 {[%emt 0:01:56]} 8. Be3 {[%emt 0:00:25]} d6 {[%emt 0:03:02]} 9. Be2 {[%emt 0:00:05]} Be7 {[%emt 0:01:33]} 10. O-O {[%emt 0:00:13]} O-O {[%emt 0:00:06]} 11. Qd2 {[%emt 0:00:38]} Ne8 {[%emt 0:13:32]} 12. Rad1 {[%emt 0:01:34]} f5 {[%emt 0:05:04]} 13. exf5 {[%emt 0:00:19]} Bxf5 {[%emt 0:00:12]} 14. Bd3 {[%emt 0:00:16]} Qd7 {[%emt 0:07:28]} 15. Nd5 {[%emt 0:01:00]} Rd8 {[%emt 0:02:07]} 16. Bb6 {[%emt 0:01:52]} Rc8 {[%emt 0:01:29]} 17. Nce3 {[%emt 0:00:57]} e4 {[%emt 0:09:56]} 18. Bb1 {[%emt 0:01:38]} Bg5 {[%emt 0:07:51]} 19. Qe2 {[%emt 0:01:31]} Ne5 {[%emt 0:04:00]} 20. Nxf5 {[%emt 0:01:16]} Qxf5 {[%emt 0:02:49]} 21. Bxe4 {[%emt 0:01:21]} Qe6 {[%emt 0:00:44]} 22. f4 {[%emt 0:02:13]} Nxc4 {[%emt 0:07:00]} 23. Bh7+ {[%emt 0:00:47]} 1-0

[Event "4th ChessMates Murmansk 2020"]
[Site "Murmansk"]
[Date "2020.03.15"]
[Round "5.6"]
[White "Myskovski, Deniss"]
[Black "Morar, Kirill"]
[Result "0-1"]
[ECO "B40"]
[WhiteElo "1205"]
[BlackElo "1271"]
[Annotator "NA RC"]
[PlyCount "64"]
[EventDate "2020.03.13"]
[EventType "team-tourn"]
[EventCountry "RUS"]
[SourceTitle "playchess.com"]
[Source "ChessBase"]
[SourceQuality "1"]
[TimeControl "5400+30"]

1. e4 {[%emt 0:02:25]} c5 {[%emt 0:00:00]} 2. Nf3 {[%emt 0:00:54]} e6 {[%emt 0:00:00]} 3. Nc3 {[%emt 0:00:44]} a6 {[%emt 0:02:05]} 4. Be2 {[%emt 0:01:05]} d5 5. d4 Nf6 {[%emt 0:27:01]} 6. exd5 {[%emt 0:04:56]} Nxd5 {[%emt 0:02:08]} 7. Nxd5 {[%emt 0:00:59]} exd5 {[%emt 0:02:08]} 8. O-O {[%emt 0:02:41]} Be7 {[%emt 0:01:11]} 9. Re1 {[%emt 0:02:03]} O-O {[%emt 0:01:11]} 10. c3 {[%emt 0:01:16]} Nc6 {[%emt 0:00:31]} 11. Bf4 {[%emt 0:03:49]} Be6 {[%emt 0:01:48]} 12. Ne5 {[%emt 0:01:22]} Qb6 {[%emt 0:01:22]} 13. Nxc6 {[%emt 0:00:50]} bxc6 {[%emt 0:00:13]} 14. Bg4 {[%emt 0:08:42]} cxd4 {[%emt 0:06:54]} 15. Qxd4 {[%emt 0:06:35]} Bc5 {[%emt 0:04:01]} 16. Qd1 {[%emt 0:02:31]} Bxf2+ {[%emt 0:00:23]} 17. Kf1 {[%emt 0:01:25]} Bxe1 {[%emt 0:00:22]} 18. Kxe1 {[%emt 0:00:16]} Qg1+ {[%emt 0:00:13]} 19. Kd2 {[%emt 0:00:49]} Qxg2+ {[%emt 0:00:24]} 20. Be2 {[%emt 0:00:14]} Bg4 {[%emt 0:00:00]} 21. Qf1 {[%emt 0:00:00]} Qxe2+ {[%emt 0:00:16]} 22. Qxe2 {[%emt 0:00:00]} Bxe2 {[%emt 0:00:04]} 23. Kxe2 {[%emt 0:00:05]} Rfe8+ {[%emt 0:00:01]} 24. Kf2 {[%emt 0:00:32]} Re4 {[%emt 0:00:19]} 25. Be3 {[%emt 0:00:46]} Rae8 {[%emt 0:00:09]} 26. Re1 {[%emt 0:00:19]} f5 {[%emt 0:00:05]} 27. Bd2 {[%emt 0:00:21]} Rxe1 {[%emt 0:00:08]} 28. Bxe1 {[%emt 0:00:10]} Kf7 {[%emt 0:00:02]} 29. Bd2 {[%emt 0:00:19]} Kf6 {[%emt 0:00:08]} 30. b4 {[%emt 0:00:28]} g5 {[%emt 0:00:09]} 31. Kf3 {[%emt 0:00:14]} h5 {[%emt 0:00:19]} 32. a4 {[%emt 0:00:28]} h4 {[%emt 0:00:06]} 0-1

[Event "4th ChessMates Murmansk 2020"]
[Site "Murmansk"]
[Date "2020.03.15"]
[Round "5.7"]
[White "Abbasov, Aziz"]
[Black "Blokhin, Sofia"]
[Result "1/2-1/2"]
[ECO "A01"]
[WhiteElo "1478"]
[BlackElo "1854"]
[Annotator "NA RC"]
[PlyCount "84"]
[EventDate "2020.03.13"]
[EventType "team-tourn"]
[EventCountry "RUS"]
[SourceTitle "playchess.com"]
[Source "ChessBase"]
[SourceQuality "1"]
[TimeControl "5400+30"]

{[%evp 8,77,2,0,2,0,6,32767,15,-4,18,0,5,0,10,4,22,11,41,12,20,32767,0,-70,-44,-59,0,-65,-46,-60,-25,-32,-25,-48,-25,-252,-248,-241,-271,-241,-287,-309,-296,-625,-634,-895,-59,-64,-79,-68,216,-76,-75,-96,-93,-81,32767,32767,32767,32767,-58,-87,-34,-18,-24,-17,-8,-8,-10,0,-7,-8]} 1. b3 {[%emt 0:00:00]} d5 {[%emt 0:00:00]} 2. Bb2 {[%emt 0:00:00]} e6 {[%emt 0:00:00]} 3. e3 {[%emt 0:00:03]} Nf6 {[%emt 0:00:02]} 4. Nf3 {[%emt 0:00:04]} Be7 {[%emt 0:00:12]} 5. Be2 {[%emt 0:00:06]} b6 {[%emt 0:00:10]} 6. d4 {[%emt 0:01:19]} Bb7 {[%emt 0:00:15]} 7. O-O {[%emt 0:00:15]} O-O {[%emt 0:00:17]} 8. c4 {[%emt 0:00:04]} Nbd7 {[%emt 0:00:38] A13: English Opening: 1...e6.} 9. Nbd2 {[%emt 0:00:48]} c5 {[%emt 0:00:16]} 10. Rc1 {[%emt 0:00:08]} a6 {[%emt 0:00:51] [#]} 11. Ne5 $146 {[%emt 0:02:01]} ({Predecessor:} 11. a3 Rc8 {½-½ (11) Stella,A (2442)-Petkov,V (2519) Civitanova Marche 2012}) 11... dxc4 {[%emt 0:04:59]} 12. Ndxc4 {[%emt 0:05:40]} Nxe5 {[%emt 0:04:04]} 13. Nxe5 {[%emt 0:03:12]} Nd5 {[%emt 0:01:59]} 14. Bd3 {[%emt 0:07:33]} cxd4 {[%emt 0:04:04]} 15. exd4 {[%emt 0:42:24]} (15. Bxd4 $11 Ba3 16. Rc2 (16. Qh5 Nf6 $15)) 15... Nf4 {[%emt 0:03:51]} 16. f3 $1 {[%emt 0:02:54]} Bg5 {[%emt 0:03:25]} (16... Nxd3 $15 17. Qxd3 Bd6) 17. Rb1 {[%emt 0:04:27]} ({White should play} 17. Be4 $11 Qe7 18. Rc2) 17... Nd5 {[%emt 0:08:39]} 18. Re1 {[%emt 0:00:34]} Be3+ {[%emt 0:00:47]} ({Black should try} 18... f6 $17 19. Ng4 Qd6) 19. Kh1 {[%emt 0:01:24]} Qh4 {[%emt 0:03:22]} 20. g3 {[%emt 0:01:09]} Qh5 {[%emt 0:01:31]} 21. Ng4 $2 {[%emt 0:03:42] [#]} (21. Qe2 $15) 21... Qxg4 $1 {[%emt 0:04:30]} 22. Be4 {[%emt 0:00:16]} ({Don't go for} 22. Bxh7+ $2 Kxh7 23. fxg4 Nc3+ 24. d5 Nxd1 $19) 22... Qg5 {[%emt 0:02:43]} 23. Qd3 {[%emt 0:00:19]} Bf2 {[%emt 0:01:29]} 24. Re2 {[%emt 0:00:17]} Nb4 {[%emt 0:02:59] Double Attack} 25. Qc4 $2 {[%emt 0:00:28]} (25. Qd1 Bxe4 26. fxe4) 25... Bxe4 {[%emt 0:00:55]} 26. fxe4 {[%emt 0:00:12]} Qf6 $2 {[%emt 0:00:42]} (26... Rac8 $19 27. Qxb4 Qg4 28. Rxf2 Qxe4+ {[%mdl 64] Double Attack} 29. Kg1 Qxb1+ {[%mdl 64] Double Attack} 30. Kg2 Rc2) 27. Kg2 {[%emt 0:00:49]} Bxg3 {[%emt 0:04:54]} 28. hxg3 {[%emt 0:00:14]} Qe7 $2 {[%emt 0:00:56]} (28... a5 $17 {and life is bright.} 29. a3 Na6) 29. Bc3 $2 {[%emt 0:02:00]} (29. a3 $18) 29... a5 {[%emt 0:00:15]} 30. a3 {[%emt 0:05:10]} Rac8 {[%emt 0:05:54]} 31. Bxb4 {[%emt 0:00:43]} axb4 {[%emt 0:00:06]} 32. Qxb4 {[%emt 0:00:06]} Qxb4 {[%emt 0:00:07]} 33. axb4 {[%emt 0:00:04]} Rfd8 {[%emt 0:01:11]} 34. Rd2 {[%emt 0:01:48]} Kf8 {[%emt 0:00:38]} 35. Rd3 {[%emt 0:00:13]} Rc2+ {[%emt 0:00:23]} 36. Kf3 {[%emt 0:00:22] [#]} f5 {[%emt 0:01:22]} ({Black should play} 36... e5 $1 $17 {[%mdl 512]} 37. d5 (37. dxe5 Rxd3+) 37... Ke7) 37. exf5 {[%emt 0:01:18]} exf5 {[%emt 0:00:16]} 38. Rh1 {[%emt 0:00:11]} Kg8 {[%emt 0:01:27]} 39. Kf4 $11 {[%emt 0:00:33]} Rd5 {[%emt 0:00:14]} 40. Re1 {[%emt 0:00:21]} Rf2+ {[%emt 0:01:14]} 41. Ke3 {[%emt 0:00:30]} Rb2 {[%emt 0:02:11]} 42. Kf4 {[%emt 0:00:24]} Rf2+ {[%emt 0:01:28] Ke4} 1/2-1/2

[Event "4th ChessMates Murmansk 2020"]
[Site "Murmansk"]
[Date "2020.03.15"]
[Round "5.8"]
[White "Smirnova, Jekaterina"]
[Black "Khon, Ilya"]
[Result "1-0"]
[ECO "A16"]
[WhiteElo "1439"]
[BlackElo "1223"]
[Annotator "NA RC"]
[PlyCount "45"]
[EventDate "2020.03.13"]
[EventType "team-tourn"]
[EventCountry "RUS"]
[SourceTitle "playchess.com"]
[Source "ChessBase"]
[SourceQuality "1"]
[TimeControl "5400+30"]

1. c4 {[%emt 0:00:00]} Nf6 {[%emt 0:00:51]} 2. Nc3 {[%emt 0:00:00]} d5 {[%emt 0:00:51]} 3. cxd5 {[%emt 0:00:00]} Nxd5 {[%emt 0:00:23]} 4. d4 {[%emt 0:00:45]} e6 {[%emt 0:09:19]} 5. e4 {[%emt 0:04:02]} Nb6 {[%emt 0:01:28]} 6. Nf3 {[%emt 0:00:24]} Be7 {[%emt 0:10:55]} 7. Bb5+ {[%emt 0:01:55]} Bd7 {[%emt 0:00:46]} 8. Bd3 {[%emt 0:01:48]} O-O {[%emt 0:03:27]} 9. Be3 {[%emt 0:00:34]} Re8 {[%emt 0:17:43]} 10. O-O {[%emt 0:03:15]} h6 {[%emt 0:02:21]} 11. Ne5 {[%emt 0:00:44]} a6 {[%emt 0:01:25]} 12. Qh5 {[%emt 0:05:19]} Bg5 13. Qxf7+ {[%emt 0:12:48]} Kh7 {[%emt 0:27:16]} 14. Qg6+ {[%emt 0:01:23]} Kg8 {[%emt 0:02:50]} 15. f4 {[%emt 0:01:20]} Bf6 {[%emt 0:06:02]} 16. Nf7 {[%emt 0:05:30]} Qe7 {[%emt 0:02:28]} 17. Nxh6+ {[%emt 0:00:23]} Kf8 {[%emt 0:03:49]} 18. Ng4 {[%emt 0:00:24]} Qf7 {[%emt 0:03:21]} 19. Qxf7+ {[%emt 0:01:06]} Kxf7 {[%emt 0:00:15]} 20. e5 {[%emt 0:01:03]} Be7 {[%emt 0:00:31]} 21. Nf2 {[%emt 0:00:37]} Bc6 {[%emt 0:00:50]} 22. Nfe4 {[%emt 0:00:10]} Kg8 {[%emt 0:03:19]} 23. Ng5 {[%emt 0:01:15]} 1-0

[Event "4th ChessMates Murmansk 2020"]
[Site "Murmansk"]
[Date "2020.03.15"]
[Round "5.9"]
[White "Yatchenko, Leonid"]
[Black "Mertins, Ostap"]
[Result "1/2-1/2"]
[ECO "C00"]
[WhiteElo "1705"]
[BlackElo "1375"]
[Annotator "NA RC"]
[PlyCount "115"]
[EventDate "2020.03.13"]
[EventType "team-tourn"]
[EventCountry "RUS"]
[SourceTitle "playchess.com"]
[Source "ChessBase"]
[SourceQuality "1"]
[TimeControl "5400+30"]

1. e4 {[%emt 0:00:00]} e6 {[%emt 0:00:00]} 2. Nf3 {[%emt 0:00:00]} b6 {[%emt 0:00:00]} 3. d4 {[%emt 0:00:14]} Bb7 {[%emt 0:00:03]} 4. Bd3 {[%emt 0:00:27]} Nf6 {[%emt 0:00:36]} 5. e5 {[%emt 0:01:08]} Nd5 {[%emt 0:00:17]} 6. c3 {[%emt 0:00:14]} c5 {[%emt 0:00:33]} 7. a3 {[%emt 0:00:22]} Nc6 {[%emt 0:01:27]} 8. Bc2 {[%emt 0:00:14]} d6 {[%emt 0:01:26]} 9. O-O {[%emt 0:01:28]} dxe5 {[%emt 0:02:56]} 10. dxe5 {[%emt 0:00:06]} Qc7 {[%emt 0:00:36]} 11. Re1 {[%emt 0:00:37]} Rd8 {[%emt 0:02:05]} 12. Qe2 {[%emt 0:00:49]} a6 {[%emt 0:05:14]} 13. Bg5 {[%emt 0:00:50]} Be7 {[%emt 0:01:00]} 14. Bxe7 {[%emt 0:00:28]} Ncxe7 {[%emt 0:02:05]} 15. g3 {[%emt 0:04:27]} b5 {[%emt 0:04:00]} 16. Nbd2 {[%emt 0:01:55]} h6 {[%emt 0:03:03]} 17. c4 {[%emt 0:02:01]} bxc4 {[%emt 0:01:33]} 18. Nxc4 {[%emt 0:00:12]} Nb6 {[%emt 0:00:27]} 19. Nd6+ {[%emt 0:00:29]} Kf8 {[%emt 0:02:49]} 20. Nxb7 {[%emt 0:00:05]} Qxb7 {[%emt 0:00:08]} 21. Nd2 {[%emt 0:01:01]} Ned5 {[%emt 0:02:40]} 22. Ne4 {[%emt 0:02:44]} Nd7 {[%emt 0:03:56]} 23. Nd6 {[%emt 0:01:47]} Qc6 {[%emt 0:01:13]} 24. Nc4 {[%emt 0:00:17]} N7b6 {[%emt 0:00:49]} 25. Nxb6 {[%emt 0:00:30]} Qxb6 {[%emt 0:00:19]} 26. Be4 {[%emt 0:00:49]} Ke7 {[%emt 0:01:23]} 27. Rac1 {[%emt 0:01:41]} Rb8 {[%emt 0:01:40]} 28. Qc4 {[%emt 0:07:37]} Rhd8 {[%emt 0:04:09]} 29. Re2 {[%emt 0:03:05]} Rbc8 {[%emt 0:01:59]} 30. Bg2 {[%emt 0:01:18]} Qb5 {[%emt 0:00:43]} 31. Qh4+ {[%emt 0:02:15]} Kf8 {[%emt 0:00:30]} 32. Rec2 {[%emt 0:00:21]} c4 {[%emt 0:03:38]} 33. Rxc4 {[%emt 0:00:40]} Rb8 {[%emt 0:02:44]} 34. b4 {[%emt 0:01:40]} Qa4 {[%emt 0:01:15]} 35. Bxd5 {[%emt 0:01:46]} exd5 {[%emt 0:01:03]} 36. Rc7 {[%emt 0:01:20]} Qe8 {[%emt 0:01:08]} 37. Qd4 {[%emt 0:00:17]} Rd7 {[%emt 0:02:52]} 38. Kg2 {[%emt 0:05:27]} Rxc7 {[%emt 0:02:42]} 39. Rxc7 {[%emt 0:00:07]} Qe6 {[%emt 0:01:22]} 40. Qc5+ {[%emt 0:01:56]} Ke8 {[%emt 0:05:17]} 41. f4 {[%emt 0:02:26]} d4 {[%emt 0:02:30]} 42. Qc6+ {[%emt 0:00:42]} Qxc6+ {[%emt 0:00:40]} 43. Rxc6 {[%emt 0:00:03]} a5 {[%emt 0:01:15]} 44. bxa5 {[%emt 0:00:57]} Rb3 {[%emt 0:00:47]} 45. a4 {[%emt 0:00:33]} Rb4 {[%emt 0:00:14]} 46. Rd6 {[%emt 0:00:39]} Rxa4 {[%emt 0:00:16]} 47. Rd5 {[%emt 0:00:15]} d3 {[%emt 0:03:34]} 48. Rxd3 {[%emt 0:00:10]} Rxa5 {[%emt 0:00:04]} 49. Kf3 {[%emt 0:00:15]} Ra4 {[%emt 0:01:32]} 50. h4 {[%emt 0:00:26]} h5 {[%emt 0:01:29]} 51. g4 {[%emt 0:00:48]} hxg4+ {[%emt 0:00:18]} 52. Kxg4 {[%emt 0:00:05]} g6 {[%emt 0:00:39]} 53. Rf3 {[%emt 0:00:34]} Ke7 {[%emt 0:00:59]} 54. Rb3 {[%emt 0:01:08]} Ra1 {[%emt 0:03:38]} 55. Rb7+ {[%emt 0:00:14]} Ke6 {[%emt 0:00:19]} 56. Rb3 {[%emt 0:00:21]} Rg1+ 57. Rg3 Rxg3+ 58. Kxg3 1/2-1/2